bitfinex-derivatives/quotes_ETHF0:USTF0_20250708
["timestamp","ask_amount","ask_price","bid_price","bid_amount"]
[1751998101446,2.1654833,2621.0,2620.9,27.86706]
[1751998101647,2.7992833,2621.0,2620.9,27.86706]
[1751998101835,2.0362533,2621.0,2620.9,27.86706]
[1751998102343,0.76298,2621.3,2621.2,0.76295]
[1751998102535,0.76301,2621.2,2621.1,0.76298]
[1751998102844,0.76306,2621.0,2620.9,0.76306]
[1751998103042,5.58246,2621.0,2620.9,28.50486]
[1751998103636,2.37466,2621.0,2620.9,0.6448]
[1751998103842,0.76306,2620.9,2620.8,0.6489]
[1751998104042,0.76318,2620.6,2620.5,0.76316]
[1751998104241,0.76318,2620.5,2620.4,0.76318]
[1751998104442,2.37478,2620.5,2620.4,1.40798]
[1751998104646,2.37478,2620.5,2620.4,0.76318]
[1751998104855,2.37478,2620.5,2620.4,27.85618]
[1751998105548,2.37478,2620.5,2620.4,27.85518]
[1751998106049,0.6338,2620.5,2620.4,28.49998]
[1751998106348,0.6338,2620.5,2620.4,27.85518]
[1751998106548,0.6338,2620.5,2620.4,28.49998]
[1751998106848,3.2078,2620.6,2620.5,0.76318]
[1751998107244,0.76312,2620.8,2620.7,0.76309]
[1751998107446,2.79931702,2620.8,2620.7,27.85409]
[1751998107647,2.79931702,2620.8,2620.7,28.49889]
[1751998107942,0.76332,2620.0,2619.9,3.40686984]
[1751998108142,0.76335,2619.9,2619.8,3.40686984]
[1751998108342,3.75315,2619.9,2619.8,3.40686984]
[1751998109146,0.76338,2619.8,2619.7,4.17026984]
[1751998109349,2.77538,2619.8,2619.7,0.7634]
[1751998109548,2.77538,2619.8,2619.7,1.4082]
[1751998109751,0.9778,2619.9,2619.8,0.76336]
[1751998109752,0.76337,2619.9,2619.8,0.76336]
[1751998110050,1.39718,2619.8,2619.7,0.76339]
[1751998110446,2.37498,2619.8,2619.7,0.76339]
[1751998111250,0.6338,2619.8,2619.7,1.40819]
[1751998111545,0.76337,2619.9,2619.8,0.76338]
[1751998111741,1.39717,2619.9,2619.8,0.76338]
[1751998111950,0.7635,2619.5,2619.4,0.76348]
[1751998112140,1.3276,2619.8,2619.6,0.76341]
[1751998112350,0.76341,2619.7,2619.6,0.76341]
[1751998112945,3.97121,2619.7,2619.6,0.76341]
[1751998113147,3.97121,2619.7,2619.4,0.6448]
[1751998113148,0.76347,2619.6,2619.5,0.76345]
[1751998113647,0.76347,2619.5,2619.4,0.6448]
[1751998113841,4.17738817,2619.5,2619.4,0.6448]
[1751998114246,0.76347,2619.5,2619.4,0.6448]
[1751998114550,0.76361,2619.1,2619.0,0.76359]
[1751998114742,0.76361,2619.1,2618.7,27.081]
[1751998114743,3.2078,2619.1,2618.7,27.081]
[1751998114950,0.76367,2618.9,2618.8,0.76363]
[1751998115149,0.7637,2618.7,2618.6,1.42651]
[1751998115343,0.7637,2618.7,2618.6,0.6628]
[1751998115648,0.76382,2618.3,2618.2,4.84740984]
[1751998115848,0.76382,2618.3,2618.2,5.18070984]
[1751998116146,0.76381,2618.4,2618.3,0.76379]
[1751998116342,1.3826,2618.6,2618.2,1.01]
[1751998116541,1.3826,2618.6,2618.5,0.76376]
[1751998116542,2.14637,2618.6,2618.5,0.76376]
[1751998117050,0.6338,2618.6,2618.5,0.76376]
[1751998117352,0.76378,2618.5,2618.4,0.76377]
[1751998117551,1.74155,2618.6,2618.5,0.76376]
[1751998117751,2.37535,2618.6,2618.5,0.76376]
[1751998117951,0.76379,2618.5,2618.4,0.76377]
[1751998118149,1.6116,2618.5,2618.2,0.6767]
[1751998118352,0.76389,2618.1,2618.0,0.76387]
[1751998118652,0.76389,2618.1,2617.7,1.90997]
[1751998118653,0.76398,2617.8,2617.7,0.76397]
[1751998118849,0.9778,2618.1,2617.7,0.3333]
[1751998119046,0.76394,2617.9,2617.8,0.76393]
[1751998119244,1.39778,2617.8,2617.7,0.76399]
[1751998119542,0.6338,2617.8,2617.7,1.09729]
[1751998120145,1.39776,2617.8,2617.7,1.09729]
[1751998120349,0.6338,2617.8,2617.7,1.09729]
[1751998120844,1.6116,2617.8,2617.6,0.764]
[1751998121150,1.74179,2617.7,2617.6,0.764]
[1751998121350,2.37559,2617.7,2617.6,0.764]
[1751998121552,3.2078,2617.8,2617.7,0.76399]
[1751998121747,3.2078,2617.8,2617.7,1.09729]
[1751998122054,3.2078,2617.8,2617.7,0.76399]
[1751998122253,3.8416,2617.8,2617.7,0.76399]
[1751998122450,4.8194,2617.8,2617.5,55.6153]
[1751998122651,5.58339,2617.8,2617.7,0.76399]
[1751998122851,0.76402,2617.7,2617.6,0.764]
[1751998123050,4.8194,2617.8,2617.0,5.1183]
[1751998123249,0.76414,2617.2,2617.1,28.50105]
[1751998123551,3.97194,2617.2,2617.1,1.41907]
[1751998124554,3.2078,2617.2,2617.1,1.41907]
[1751998125055,3.97194,2617.2,2617.1,1.75237]
[1751998125254,3.2078,2617.5,2617.2,0.76414]
[1751998125449,3.2078,2617.5,2617.4,0.76408]
[1751998126158,3.8416,2617.5,2617.4,1.09738]
[1751998127246,3.2078,2617.5,2617.4,1.09738]
[1751998128256,3.2078,2617.8,2617.7,0.76399]
[1751998128457,3.2078,2618.1,2618.0,0.76391]
[1751998128656,3.8416,2618.1,2618.0,0.76391]
[1751998128857,3.8416,2618.1,2618.0,1.09721]
[1751998129056,4.60548,2618.1,2618.0,1.09721]
[1751998129961,3.8416,2618.1,2618.0,1.09721]
[1751998130360,4.1856,2618.4,2618.3,0.76382]
[1751998130555,3.8427,2618.4,2618.3,0.76382]
[1751998130859,4.60649,2618.4,2618.3,0.76382]
[1751998131460,0.76382,2618.3,2618.2,27.84384]
[1751998131762,5.58431,2618.4,2618.3,0.76382]
[1751998131965,4.8205,2618.4,2618.3,0.76382]
[1751998132262,3.8427,2618.4,2618.3,0.76382]
[1751998132962,3.8427,2618.4,2618.3,4.17773817]
[1751998133364,3.8427,2618.4,2618.3,4.51393817]
[1751998133665,3.8427,2618.4,2618.3,5.86483817]
[1751998133959,3.2078,2618.4,2618.3,5.86483817]
[1751998134164,3.2078,2618.8,2618.3,5.10101817]
[1751998134362,0.76375,2618.6,2618.5,0.76373]
[1751998134664,1.39865,2618.6,2618.5,0.76373]
[1751998135561,1.39865,2618.6,2618.4,0.6314]
[1751998135768,3.97156,2618.5,2618.4,0.6314]
[1751998135964,4.60646,2618.5,2618.4,0.6314]
[1751998136165,5.62536,2618.5,2618.4,0.6314]
[1751998136468,0.76382,2618.3,2618.2,0.76384]
[1751998136668,0.76382,2618.3,2617.9,0.7639]
[1751998136669,0.76393,2618.0,2617.9,0.7639]
[1751998136869,0.6349,2618.0,2617.9,0.7639]
[1751998137070,0.6349,2618.0,2617.9,1.1001]
[1751998137471,3.8427,2618.0,2617.9,1.1001]
[1751998138670,0.6349,2618.0,2617.9,1.1001]
[1751998139472,4.2267,2618.3,2618.2,0.76385]
[1751998139769,4.8616,2618.3,2618.2,0.76385]
[1751998140267,5.62542,2618.3,2618.2,0.76385]
[1751998140466,0.76391,2618.1,2618.0,27.82887]
[1751998140672,2.41771,2618.1,2618.0,27.82887]
[1751998140866,1.6538,2618.1,2618.0,28.16507]
[1751998141169,0.6349,2618.1,2618.0,28.16507]
[1751998141366,0.6349,2618.1,2618.0,27.82887]
[1751998141566,3.97164,2618.3,2618.2,0.76385]
[1751998141762,5.62544,2618.3,2618.2,0.76385]
[1751998142772,4.8616,2618.3,2618.2,1.09985]
[1751998142971,4.8616,2618.3,2618.2,0.76385]
[1751998143180,3.2078,2618.3,2618.2,1.09985]
[1751998143366,3.8427,2618.3,2618.2,1.09985]
[1751998143873,3.8427,2618.3,2618.2,28.15985]
[1751998144372,4.60652,2618.3,2618.2,0.336]
[1751998144572,4.60652,2618.3,2618.2,1.09985]
[1751998145274,4.60652,2618.3,2618.2,0.76385]
[1751998145470,6.01763466,2618.3,2618.2,0.76385]
[1751998145772,5.25380466,2618.3,2618.2,0.76385]
[1751998146469,6.01762466,2618.3,2618.2,0.76385]
[1751998146664,6.01762466,2618.3,2618.2,1.09985]
[1751998146874,5.25380466,2618.3,2618.2,0.76385]
[1751998147075,6.01762466,2618.3,2618.2,1.09985]
[1751998147368,7.03652466,2618.3,2618.2,1.09985]
[1751998148177,7.03652466,2618.3,2618.1,0.76386]
[1751998148178,0.7639,2618.2,2618.1,0.76386]
[1751998148378,2.4177,2618.2,2618.1,27.81786]
[1751998148771,2.4177,2618.2,2618.1,28.15386]
[1751998149472,2.4177,2618.2,2618.1,0.76386]
[1751998150173,1.6538,2618.2,2618.1,0.76386]
[1751998150571,2.41765,2618.2,2618.1,0.76386]
[1751998150876,0.6349,2618.2,2618.1,0.76386]
[1751998151575,1.39875,2618.2,2618.1,1.09986]
[1751998152475,0.6349,2618.2,2618.1,1.09986]
[1751998155075,3.2078,2618.3,2618.2,0.76385]
[1751998155272,3.2078,2618.3,2618.2,1.09985]
[1751998155472,3.2078,2618.3,2618.2,0.76385]
[1751998155473,4.60652,2618.3,2618.2,0.76385]
[1751998155774,4.60652,2618.3,2618.2,1.09985]
[1751998156375,6.01935302,2618.3,2618.2,1.09985]
[1751998157174,7.03825302,2618.3,2618.2,0.76385]
[1751998157476,7.03825302,2618.3,2617.8,5.37136984]
[1751998157477,0.76388,2618.2,2618.1,0.76385]
[1751998157678,1.39878,2618.2,2618.1,27.80185]
[1751998157875,2.41768,2618.2,2618.1,27.80185]
[1751998158074,3.06727693,2618.2,2618.1,28.13785]
[1751998158278,3.83112693,2618.2,2618.1,0.76385]
[1751998158470,3.83112693,2618.2,2618.1,1.09985]
[1751998158676,2.04837693,2618.2,2618.1,0.76385]
[1751998158970,2.81222693,2618.2,2618.1,0.76385]
[1751998159171,0.76396,2617.9,2617.8,0.76394]
[1751998159978,2.17911597,2617.9,2617.8,0.76394]
[1751998160478,2.17911597,2617.9,2617.8,27.79794]
[1751998161879,2.17911597,2617.9,2617.8,28.13164]
[1751998161880,3.83541597,2617.9,2617.8,28.13164]
[1751998162275,3.83541597,2617.9,2617.8,27.79794]
[1751998162472,3.07145597,2617.9,2617.8,1.09764]
[1751998162676,3.2078,2618.0,2617.9,0.76394]
[1751998162978,4.62329633,2618.0,2617.9,4.17785817]
[1751998163179,1.41549633,2618.0,2617.9,4.83695817]
[1751998163577,1.41549633,2618.0,2617.9,6.14135817]
[1751998164375,3.2078,2618.3,2618.2,0.76385]
[1751998164578,5.26054281,2618.3,2618.2,4.17776817]
[1751998164876,5.26054281,2618.3,2618.2,4.51146817]
[1751998165081,5.26054281,2618.3,2618.2,4.17776817]
[1751998165478,4.62314281,2618.3,2618.2,4.51146817]
[1751998165879,5.26054281,2618.3,2618.2,4.17776817]
[1751998166080,6.02436281,2618.3,2618.2,4.51146817]
[1751998166282,6.02436281,2618.3,2618.2,31.53646817]
[1751998166481,5.26054281,2618.3,2618.2,31.53646817]
[1751998167384,2.05274281,2618.3,2618.2,31.53646817]
[1751998168386,0.6374,2618.3,2618.2,31.53646817]
[1751998168988,3.97155,2618.6,2618.5,0.76376]
[1751998169185,7.06044072,2618.6,2618.5,0.76376]
[1751998169387,6.02332072,2618.6,2618.5,4.17767817]
[1751998169684,6.02332072,2618.6,2618.4,27.6596]
[1751998169685,0.76376,2618.5,2618.4,28.42337]
[1751998169889,2.81555072,2618.5,2618.4,28.42337]
[1751998170180,3.85265072,2618.5,2618.4,28.42337]
[1751998170378,3.85252877,2618.5,2618.4,28.42337]
[1751998170578,3.08876877,2618.5,2618.4,28.75707]
[1751998170784,3.85252877,2618.5,2618.4,28.75707]
[1751998171484,1.41426877,2618.5,2618.4,28.42337]
[1751998171684,2.05166877,2618.5,2618.4,28.75707]
[1751998171886,2.81542877,2618.5,2618.4,28.75707]
[1751998172289,2.05166877,2618.5,2618.4,28.75707]
[1751998172787,1.41426877,2618.5,2618.4,28.75707]
[1751998172990,3.2078,2618.6,2618.5,0.76376]
[1751998173290,0.76361,2619.1,2619.0,0.7636]
[1751998173487,4.60881,2619.1,2619.0,0.7636]
[1751998173691,5.64591,2619.1,2619.0,0.7636]
[1751998174681,5.64591,2619.1,2619.0,1.0973]
[1751998179586,0.76366,2619.0,2618.7,3.41391817]
[1751998179788,0.76376,2618.6,2618.5,0.76372]
[1751998179993,0.76376,2618.6,2618.4,0.6376]
[1751998179994,0.76376,2618.5,2618.4,0.76376]
[1751998180192,0.76376,2618.5,2618.4,27.75876]
[1751998180987,0.76376,2618.5,2618.4,27.75576]
[1751998181187,1.3808,2618.7,2618.4,26.992]
[1751998181394,0.76376,2618.6,2618.5,0.76373]
[1751998181595,2.43826,2618.6,2618.5,0.76373]
[1751998181893,1.6745,2618.6,2618.5,27.75476]
[1751998182097,0.76364,2619.0,2618.9,0.76363]
[1751998182299,1.40104,2619.0,2618.9,0.76363]
[1751998182793,0.76367,2618.8,2618.7,31.16759817]
[1751998182991,0.76367,2618.8,2618.7,27.75368]
[1751998183392,2.43817,2618.8,2618.7,27.75368]
[1751998183792,2.43817,2618.8,2618.7,28.08738]
[1751998184294,1.6745,2618.8,2618.7,28.08738]
[1751998184597,2.43817,2618.8,2618.7,28.08738]
[1751998184793,2.43817,2618.8,2618.7,1.09738]
[1751998184993,2.43817,2618.8,2618.7,28.08238]
[1751998186193,1.6745,2618.8,2618.7,28.08238]
[1751998186398,0.6374,2618.8,2618.7,28.08238]
[1751998186997,1.40107,2618.8,2618.7,28.08238]
[1751998187293,0.6374,2618.8,2618.7,28.08238]
[1751998187497,0.6374,2618.8,2618.7,31.49629817]
[1751998188502,3.2078,2619.1,2619.0,0.76361]
[1751998188695,3.2078,2619.1,2619.0,31.49022817]
[1751998188696,5.24344361,2619.1,2619.0,31.49022817]
[1751998188898,4.60604361,2619.1,2619.0,31.49022817]
[1751998189094,4.60604361,2619.1,2619.0,31.15652817]
[1751998189302,3.2078,2619.1,2619.0,31.49022817]
[1751998189701,3.8452,2619.1,2619.0,31.49022817]
[1751998190504,3.2078,2619.4,2619.3,0.7635]
[1751998190803,3.8811,2619.4,2619.3,31.15341817]
[1751998191900,4.6446,2619.4,2619.3,31.14941817]
[1751998192099,3.8811,2619.4,2619.3,31.14941817]
[1751998192299,3.8811,2619.4,2619.3,31.48481817]
[1751998192902,3.8811,2619.4,2619.3,31.48181817]
[1751998193097,3.2078,2619.4,2619.3,31.48181817]
[1751998193304,1.0371,2619.7,2619.6,0.76344]
[1751998193601,2.47381,2619.7,2619.6,27.73144]
[1751998193801,1.7104,2619.7,2619.6,27.73144]
[1751998194002,2.47381,2619.7,2619.6,27.73144]
[1751998194701,2.45511,2619.7,2619.6,27.73144]
[1751998195304,3.08868817,2619.7,2619.6,28.06684]
[1751998195805,3.85209817,2619.7,2619.6,28.06684]
[1751998196106,3.08868817,2619.7,2619.6,28.06684]
[1751998196806,3.85209817,2619.7,2619.6,28.06684]
[1751998197311,3.08868817,2619.7,2619.6,28.06684]
[1751998197607,1.42589216,2619.7,2619.6,28.42483779]
[1751998197808,1.42589216,2619.7,2619.6,31.83875596]
[1751998197998,1.39698817,2619.7,2619.6,31.83875596]
[1751998198400,3.2078,2619.8,2619.7,0.76341]
[1751998198602,3.2078,2619.8,2619.7,1.79078766]
[1751998198603,3.78533367,2619.8,2619.7,1.79078766]
[1751998198803,3.02195367,2619.8,2619.7,1.79078766]
[1751998200210,0.6733,2619.8,2619.7,1.79078766]
[1751998200404,6.39768,2620.2,2620.1,0.76329]
[1751998200405,3.2078,2620.2,2620.1,0.76329]
[1751998200704,4.60276669,2620.2,2620.1,32.15758583]
[1751998201210,5.27606669,2620.2,2620.1,31.48818583]
[1751998201404,7.05772669,2620.2,2620.1,27.30897766]
[1751998201604,6.03932669,2620.2,2620.1,27.30897766]
[1751998201800,6.03932669,2620.2,2620.1,28.07226766]
[1751998202101,7.05772669,2620.2,2620.1,28.07223645]
[1751998202308,7.05772669,2620.2,2620.1,28.74163645]
[1751998203010,7.05772669,2620.2,2620.1,27.97834645]
[1751998203208,0.76341,2619.7,2619.6,0.6483]
[1751998203508,1.90841,2619.9,2619.3,27.7075]
[1751998203509,0.47712928,2619.4,2619.3,27.7075]
[1751998204409,0.76355,2619.2,2619.1,0.6768]
[1751998204710,0.76355,2619.2,2619.1,28.38336]
[1751998204902,0.76355,2619.2,2619.1,29.05276]
[1751998205100,0.76355,2619.2,2619.1,1.43296]
[1751998205405,0.76355,2619.3,2619.2,0.76354]
[1751998205912,0.76355,2619.2,2619.1,1.43296]
[1751998206109,0.76355,2619.2,2619.1,27.6104]
[1751998206306,0.76355,2619.2,2619.1,0.6694]
[1751998206506,0.76355,2619.2,2619.1,27.6084]
[1751998206703,0.76355,2619.2,2619.1,26.939]
[1751998206900,2.45525,2619.2,2619.1,26.939]
[1751998207106,1.6917,2619.2,2619.1,28.37198]
[1751998207313,3.2078,2619.5,2619.4,0.7635]
[1751998207603,0.76351,2619.4,2619.3,0.76351]
[1751998207810,0.76354,2619.3,2619.2,0.76353]
[1751998208011,0.76351,2619.4,2619.3,0.7635]
[1751998208511,1.43681,2619.4,2619.3,0.7635]
[1751998209008,1.43681,2619.4,2619.3,1.4329]
[1751998209211,0.6733,2619.4,2619.3,1.4329]
[1751998209401,3.97129,2619.5,2619.3,1.4329]
[1751998209402,3.2078,2619.5,2619.4,0.7635]
[1751998209707,4.61308807,2619.5,2619.4,26.935]
[1751998210009,0.7635,2619.4,2619.3,0.76351]
[1751998210210,2.4552,2619.4,2619.3,28.36791]
[1751998210402,2.4552,2619.4,2619.3,27.69851]
[1751998210602,2.4552,2619.4,2619.3,28.36791]
[1751998211411,0.76359,2619.2,2619.1,0.76357]
[1751998211606,0.6733,2619.2,2619.1,28.36497]
[1751998211807,2.92138807,2619.5,2619.4,0.7635]
[1751998212012,3.59468807,2619.5,2619.4,31.10841817]
[1751998213410,0.6733,2619.5,2619.4,31.10841817]
[1751998213617,4.56127293,2620.7,2619.5,6.338]
[1751998213808,1.90628,2622.8,2621.1,3.2078]
[1751998214009,18.7725814,2622.6,2622.0,7.38444817]
[1751998214313,0.7626,2622.5,2622.0,34.44944817]
[1751998214514,18.0100214,2622.6,2622.0,38.68671817]
[1751998214817,18.7725814,2622.6,2622.5,3.2078]
[1751998215019,0.76256,2622.6,2622.5,0.78716721]
[1751998215517,1.0184,2622.6,2622.1,3.2078]
[1751998215718,0.76266,2622.3,2622.1,3.2078]
[1751998215912,0.76267,2622.2,2622.1,3.2078]
[1751998216116,1.0184,2623.0,2622.1,33.68271817]
[1751998216418,1.78085,2623.0,2622.7,3.2078]
[1751998216612,0.76247,2622.9,2622.6,1.15025404]
[1751998216913,4.2262,2622.8,2621.9,3.2078]
[1751998217114,4.5798,2622.8,2621.9,30.2718]
[1751998217312,0.76259,2622.5,2622.1,0.76269]
[1751998217716,1.78099,2622.5,2622.1,0.76269]
[1751998217918,0.76262,2622.4,2622.1,0.76269]
[1751998218115,0.76263,2622.4,2622.0,0.76271]
[1751998218322,2.04723,2622.4,2622.0,0.76271]
[1751998218518,1.2846,2622.4,2622.1,0.7627]
[1751998218718,2.04722,2622.4,2622.0,0.76271]
[1751998219011,1.2846,2622.4,2621.9,30.2718]
[1751998219221,1.78106,2622.3,2622.0,0.76273]
[1751998219418,0.76266,2622.3,2622.0,0.76273]
[1751998219718,0.76266,2622.3,2621.9,3.97055]
[1751998219909,0.76268,2622.2,2621.9,3.97055]
[1751998220108,0.76266,2622.3,2622.0,0.76272]
[1751998220714,0.76266,2622.3,2622.1,1.74750799]
[1751998220917,0.76266,2622.3,2622.2,1.74750799]
[1751998222322,0.76273,2622.0,2621.9,3.2078]
[1751998222523,2.42783,2622.0,2621.9,4.9500556]
[1751998222815,2.42783,2622.0,2621.9,1.7422556]
[1751998223314,0.76285,2621.6,2621.5,3.2078]
[1751998223516,1.44875,2621.6,2621.5,4.9498813]
[1751998223718,1.44875,2621.6,2621.5,4.01171968]
[1751998223719,2.42795,2621.6,2621.5,4.01171968]
[1751998223919,2.42795,2621.6,2621.5,1.7420813]
[1751998224120,0.76295,2621.3,2621.1,5.66124633]
[1751998224311,0.76295,2621.3,2621.2,1.74185086]
[1751998224516,1.74215,2621.3,2621.2,1.74185086]
[1751998224713,0.9792,2621.3,2620.8,1.69048261]
[1751998224912,0.76305,2620.9,2620.8,1.69048261]
[1751998225124,0.76305,2620.9,2620.5,7.31226984]
[1751998225125,0.9792,2620.9,2620.5,3.2078]
[1751998225317,1.90757,2621.0,2620.5,3.2078]
[1751998225518,0.76314,2620.6,2620.5,3.2078]
[1751998226017,1.66931848,2621.0,2620.5,0.35783564]
[1751998226217,0.76311,2620.7,2620.6,0.35783564]
[1751998226921,0.9792,2620.9,2620.6,0.35783564]
[1751998227118,5.11523,2621.2,2620.7,1.34173564]
[1751998227119,3.2078,2621.2,2620.7,1.34173564]
[1751998227320,3.97079,2621.2,2621.0,0.76302]
[1751998227514,3.97079,2621.2,2621.1,0.35783564]
[1751998228121,0.76295,2621.3,2621.1,1.12081564]
[1751998228322,0.76295,2621.3,2621.2,0.35783564]
[1751998229922,1.44885,2621.3,2621.2,0.99143564]
[1751998231028,0.76295,2621.3,2621.2,0.6336]
[1751998231230,1.44885,2621.3,2621.2,0.6336]
[1751998231631,0.76298,2621.2,2621.0,0.76301]
[1751998231832,0.76298,2621.2,2621.1,0.99140229]
[1751998232334,0.76298,2621.2,2621.1,0.99140194]
[1751998233728,1.44888,2621.2,2621.1,0.99140194]
[1751998233927,0.76298,2621.2,2621.1,0.99140194]
[1751998234131,0.76298,2621.2,2621.1,0.99140436]
[1751998234728,1.44888,2621.2,2621.1,0.99140436]
[1751998235035,0.76298,2621.2,2621.1,0.99140436]
[1751998235236,1.44888,2621.2,2621.1,0.99140436]
[1751998235529,0.76298,2621.2,2621.1,0.99140436]
[1751998235734,1.44888,2621.2,2621.1,0.99140436]
[1751998236133,0.6859,2621.2,2621.1,1.75439436]
[1751998236434,0.76295,2621.3,2621.1,1.75439436]
[1751998236435,3.2078,2621.5,2621.1,1.12079436]
[1751998236737,0.76296,2621.2,2621.1,1.39659]
[1751998236936,0.76296,2621.2,2621.1,1.75438548]
[1751998237331,0.76296,2621.2,2621.1,3.50256848]
[1751998237531,0.76296,2621.3,2621.2,0.76295]
[1751998237738,1.44886,2621.3,2621.2,0.99139548]
[1751998237936,0.76296,2621.3,2621.2,0.35779548]
[1751998238235,1.44886,2621.3,2621.2,0.35779548]
[1751998238438,1.44886,2621.3,2621.2,0.99139548]
[1751998238635,1.44886,2621.3,2621.2,0.35779548]
[1751998239137,1.44886,2621.3,2621.2,1.75435548]
[1751998239332,1.44884,2621.3,2621.2,1.75435548]
[1751998239538,1.44884,2621.3,2621.2,2.73825548]
[1751998239739,1.44884,2621.3,2621.2,1.97529548]
[1751998240039,1.44884,2621.3,2621.2,3.77404047]
[1751998240337,1.44884,2621.3,2621.2,2.79014047]
[1751998240727,1.44884,2621.3,2621.2,2.15654047]
[1751998240933,2.42804,2621.3,2621.2,2.15654047]
[1751998241534,0.76294,2621.3,2621.2,2.15654047]
[1751998241739,2.42804,2621.3,2621.2,2.15654047]
[1751998241934,1.44884,2621.3,2621.2,2.15654047]
[1751998242142,1.44884,2621.3,2621.2,2.79014047]
[1751998242337,0.76294,2621.3,2621.2,2.79014047]
[1751998242537,1.44884,2621.3,2621.2,2.79014047]
[1751998243341,1.44884,2621.3,2621.2,4.48251468]
[1751998244140,1.44884,2621.3,2621.2,5.24547468]
[1751998244540,0.76294,2621.3,2621.2,4.48251468]
[1751998244931,0.76294,2621.3,2621.2,5.24547468]
[1751998245441,0.76294,2621.3,2621.2,4.68600228]
[1751998245936,0.76294,2621.3,2621.2,5.44893228]
[1751998246136,0.76294,2621.3,2621.2,3.19527499]
[1751998246337,0.76294,2621.3,2621.2,5.44893228]
[1751998246539,1.44884,2621.3,2621.2,5.44893228]
[1751998247440,1.44884,2621.3,2621.2,3.19527499]
[1751998247644,1.44884,2621.3,2621.2,6.44804917]
[1751998247947,0.76292,2621.4,2621.3,0.76289]
[1751998248139,0.76292,2621.4,2621.3,3.26243499]
[1751998248941,1.44882,2621.4,2621.3,3.26243499]
[1751998249142,0.76292,2621.4,2621.3,6.66930483]
[1751998249346,0.9792,2622.2,2621.3,15.73171483]
[1751998249641,0.76279,2621.8,2621.7,2.26761877]
[1751998249842,0.76279,2621.8,2621.7,2.90121877]
[1751998250042,1.44869,2621.8,2621.7,5.4551322]
[1751998250238,1.41299,2621.8,2621.7,4.6923122]
[1751998250441,1.41299,2621.8,2621.7,3.49139843]
[1751998250644,2.39219,2621.8,2621.7,3.49139843]
[1751998251143,0.76279,2621.8,2621.7,4.17499843]
[1751998251339,0.47661259,2621.8,2621.7,7.00210504]
[1751998251539,0.47661259,2621.8,2621.7,5.55568504]
[1751998251740,1.12681259,2621.8,2621.7,5.09999867]
[1751998252347,1.12681259,2621.8,2621.7,4.7422769]
[1751998253241,1.12681259,2621.8,2621.7,2.8324052]
[1751998253441,1.12681259,2621.8,2621.7,4.41813669]
[1751998253939,0.47661259,2621.8,2621.7,4.41813669]
[1751998254243,1.12681259,2621.8,2621.7,4.74402492]
[1751998254444,1.12681259,2621.8,2621.7,4.06042492]
[1751998254844,1.12681259,2621.8,2621.7,4.74402492]
[1751998255343,0.47661259,2621.8,2621.7,5.50684492]
[1751998255743,1.12681259,2621.8,2621.7,6.49324492]
[1751998256042,0.47661259,2621.8,2621.7,3.23751343]
[1751998256643,0.47661259,2621.8,2621.7,2.47469343]
[1751998256836,0.76277,2621.9,2621.8,0.76279]
[1751998257040,0.76277,2621.9,2621.8,5.50593567]
[1751998257041,1.41297,2621.9,2621.8,5.50593567]
[1751998257338,1.41297,2621.9,2621.8,6.17723567]
[1751998258042,1.41297,2621.9,2621.8,5.41444567]
[1751998259045,1.41297,2621.9,2621.8,6.17723567]
[1751998259544,1.41297,2621.9,2621.8,5.41444567]
[1751998260143,1.41297,2621.9,2621.8,6.17723567]
[1751998260545,1.41297,2621.9,2621.8,7.16363567]
[1751998260741,1.41297,2621.9,2621.8,6.17723567]
[1751998261137,0.6502,2621.9,2621.8,6.17723567]
[1751998261545,0.76276,2622.0,2621.9,0.76275]
[1751998261744,0.76276,2622.0,2621.9,3.23744343]
[1751998261942,1.41296,2622.0,2621.9,3.23744343]
[1751998262142,0.76276,2622.0,2621.9,3.23744343]
[1751998262646,1.41296,2622.0,2621.9,3.23744343]
[1751998262846,1.41296,2622.0,2621.9,2.47469343]
[1751998263047,1.41296,2622.0,2621.9,3.23745343]
[1751998264448,1.41296,2622.0,2621.9,2.47469343]
[1751998264848,1.41296,2622.0,2621.9,3.23745343]
[1751998266250,1.41296,2622.0,2621.9,2.47469343]
[1751998266549,1.41296,2622.0,2621.9,4.74093631]
[1751998267645,1.41296,2622.0,2621.9,4.05733631]
[1751998267845,2.43116,2622.0,2621.9,4.05733631]
[1751998268055,2.43116,2622.0,2621.9,1.79109343]
[1751998268851,1.41296,2622.0,2621.9,1.79109343]
[1751998269049,14.02969019,2622.0,2621.9,3.49113404]
[1751998270243,10.63896,2622.0,2621.9,3.49113404]
[1751998270447,10.63896,2622.0,2621.9,1.79109343]
[1751998271949,10.63896,2622.0,2621.7,1.70004061]
[1751998271950,0.76279,2621.8,2621.7,1.70004061]
[1751998272256,2.43119,2621.8,2621.7,1.74490797]
[1751998273751,3.68669,2621.8,2621.7,1.74490797]
[1751998274552,8.68669,2621.8,2621.7,1.74490797]
[1751998274754,0.76291,2621.4,2621.3,2.26624288]
[1751998274955,0.76291,2621.4,2620.8,6.80916382]
[1751998274956,0.76311,2620.7,2620.6,4.51186382]
[1751998275154,0.76311,2620.7,2620.6,0.6836]
[1751998275755,1.41331,2620.7,2620.6,0.6836]
[1751998276552,1.41331,2620.7,2620.4,0.9864]
[1751998276553,0.76317,2620.5,2620.4,0.9864]
[1751998276752,1.41337,2620.5,2620.4,1.67]
[1751998276954,0.76317,2620.5,2620.4,0.6836]
[1751998277255,0.76334,2620.0,2619.8,0.76336]
[1751998277456,0.76334,2620.0,2619.9,1.3743]
[1751998277758,0.76334,2620.0,2619.9,2.13764]
[1751998278758,0.76334,2620.0,2619.9,1.3743]
[1751998279758,0.76331,2620.0,2619.9,2.13762]
[1751998280460,1.6684,2620.5,2619.9,1.3743]
[1751998280660,0.7632,2620.5,2620.1,8.50675019]
[1751998280964,4.226,2620.9,2620.4,6.59853019]
[1751998281260,0.76314,2620.6,2620.5,0.6709]